bitfinex/quotes_SOLUSD_20241113
["timestamp","ask_amount","ask_price","bid_price","bid_amount"]
[1731524614904,42.73517998,219.71,219.68,0.2]
[1731524615202,42.73517998,219.73,219.66,0.2]
[1731524615407,42.73517998,219.67,219.64,0.1]
[1731524615591,6.99090867,219.81,219.8,0.1]
[1731524615794,42.73517998,219.86,219.8,0.1]
[1731524616011,42.73517998,219.84,219.78,0.1]
[1731524616312,42.73517998,219.8,219.76,0.1]
[1731524616610,42.73517998,219.78,219.76,0.1]
[1731524616983,85.47035996,219.78,219.71,0.1]
[1731524617188,42.73517998,219.72,219.67,0.1]
[1731524617395,42.73517998,219.68,219.65,0.1]
[1731524617614,42.73517998,219.66,219.65,0.1]
[1731524617811,51.036884,219.76,219.57,0.1]
[1731524618007,51.036884,219.76,219.5,12.7548]
[1731524618008,42.73517998,219.58,219.53,0.1]
[1731524618311,160.5,219.75,219.51,0.1]
[1731524618312,42.73517998,219.54,219.51,0.1]
[1731524618512,42.73517998,219.52,219.47,0.1]
[1731524618705,42.73517998,219.5,219.47,0.1]
[1731524618911,42.73517998,219.5,219.45,0.5310526]
[1731524619212,42.73517998,219.46,219.45,0.4310526]
[1731524620994,109.37273396,219.46,219.45,0.4310526]
[1731524621422,23.902374,219.45,219.33,0.1]
[1731524621599,42.73517998,219.34,219.33,0.1]
[1731524621912,42.73517998,219.36,219.33,0.1]
[1731524622117,42.73517998,219.38,219.34,0.1]
[1731524622304,42.73517998,219.38,219.33,0.1]
[1731524622800,42.73517998,219.38,219.34,0.1]
[1731524623222,42.73517998,219.35,219.33,0.1]
[1731524623404,42.73517998,219.35,219.29,0.1]
[1731524623405,4.5591,219.34,219.29,0.1]
[1731524623608,4.5591,219.34,219.27,13.1309]
[1731524623609,42.73517998,219.32,219.27,0.2]
[1731524623820,42.73517998,219.28,219.24,0.1]
[1731524623996,42.73517998,219.28,219.25,0.2]
[1731524624201,42.73517998,219.32,219.3,0.1]
[1731524624400,47.29427998,219.34,219.3,0.1]
[1731524625513,42.73517998,219.34,219.28,0.2]
[1731524625717,42.73517998,219.34,219.29,0.1]
[1731524625915,42.73517998,219.34,219.31,0.1]
[1731524627016,42.73517998,219.36,219.33,0.1]
[1731524627205,42.73517998,219.34,219.3,0.1]
[1731524627924,42.73517998,219.32,219.26,0.1]
[1731524628214,23.776884,219.26,219.23,0.4310526]
[1731524628415,23.902374,219.24,219.23,0.4310526]
[1731524628617,66.63755398,219.24,219.23,0.4310526]
[1731524629823,23.902374,219.21,219.07,30.3862]
[1731524630005,42.73517998,219.11,219.07,0.1]
[1731524630324,42.73517998,219.13,219.09,0.1]
[1731524630511,23.776884,219.19,219.05,0.1]
[1731524630701,23.776884,219.19,219.03,0.1]
[1731524630702,0.12549,219.18,219.03,0.2]
[1731524630897,42.73517998,219.08,219.02,0.4310526]
[1731524631200,38.7737,219.22,219.02,0.4310526]
[1731524631201,42.73517998,219.04,219.02,0.4310526]
[1731524631602,23.776884,219.03,219.02,0.4310526]
[1731524631806,42.73517998,219.07,219.02,0.4310526]
[1731524632015,42.73517998,219.03,219.02,0.4310526]
[1731524632321,66.63755398,219.03,219.02,0.4310526]
[1731524632526,66.63755398,219.03,219.01,15.0]
[1731524632527,23.902374,219.02,219.01,10.8930526]
[1731524633019,93.89755398,219.02,219.01,10.8930526]
[1731524633219,23.902374,219.02,219.01,10.8930526]
[1731524633602,66.63755398,219.02,219.01,10.8930526]
[1731524634006,28.468074,219.02,219.01,10.8930526]
[1731524634428,71.20325398,219.02,219.01,10.8930526]
[1731524634609,71.20325398,219.02,218.81,12.3499]
[1731524634610,82.61765398,219.02,218.86,0.1]
[1731524634808,42.73517998,218.89,218.86,0.1]
[1731524635319,42.73517998,218.91,218.87,0.1]
[1731524635634,23.776884,218.98,218.94,0.1]
[1731524635816,42.73517998,219.01,218.96,0.2]
[1731524636005,42.73517998,219.0,218.98,0.2]
[1731524636200,27.3886,219.07,218.91,0.1]
[1731524636405,27.3886,219.07,218.92,0.1]
[1731524636610,42.73517998,218.93,218.92,0.1]
[1731524636920,42.73517998,219.03,219.01,0.1]
[1731524637228,42.73517998,219.1,219.05,0.1]
[1731524637608,42.73517998,219.08,219.05,0.1]
[1731524638326,42.73517998,219.06,219.05,0.1]
[1731524638638,42.73517998,219.08,219.02,0.1]
[1731524638939,42.73517998,219.12,219.08,0.1]
[1731524639124,42.73517998,219.14,219.09,0.1]
[1731524639310,24.3194,219.25,219.0,0.1]
[1731524639311,42.73517998,219.1,219.0,0.1]
[1731524639640,4.5626,219.18,219.05,0.1]
[1731524639641,42.73517998,219.06,219.05,0.1]
[1731524639932,42.73517998,219.12,219.07,0.1]
[1731524640137,42.73517998,219.14,219.11,0.1]
[1731524640509,42.73517998,219.12,219.07,0.1]
[1731524640832,6.97925237,219.14,219.12,0.1]
[1731524641030,42.73517998,219.2,219.14,0.1]
[1731524641213,42.73517998,219.18,219.14,0.1]
[1731524641416,42.73517998,219.16,219.14,0.1]
[1731524642335,42.73517998,219.16,219.15,0.1]
[1731524642508,22.7993,219.31,219.01,42.73517998]
[1731524642509,42.73517998,219.24,219.23,0.1]
[1731524642713,42.73517998,219.28,219.25,0.1]
[1731524643711,42.73517998,219.28,219.25,0.2]
[1731524644124,42.73517998,219.35,219.33,0.1]
[1731524644525,42.73517998,219.37,219.33,0.1]
[1731524644843,42.73517998,219.39,219.36,0.1]
[1731524645137,42.73517998,219.43,219.42,0.1]
[1731524646940,42.86066998,219.43,219.39,0.1]
[1731524647129,4.5568,219.45,219.42,0.1]
[1731524647318,42.73517998,219.43,219.42,0.1]
[1731524647519,0.12549,219.42,219.31,0.1]
[1731524647826,66.51206398,219.32,219.31,0.1]
[1731524648030,23.776884,219.4,219.29,0.1]
[1731524648215,23.776884,219.4,219.21,30.3285]
[1731524648216,0.12549,219.37,219.23,0.2]
[1731524648412,0.12549,219.35,219.24,0.1]
[1731524648617,23.902374,219.33,219.23,0.1]
[1731524649022,23.902374,219.33,219.11,30.7709]
[1731524649023,23.902374,219.33,219.2,0.1]
[1731524649223,23.902374,219.33,219.13,0.1]
[1731524649224,23.902374,219.2,219.13,0.1]
[1731524649442,42.73517998,219.15,219.11,0.1]
[1731524649744,23.776884,219.12,219.06,0.1]
[1731524649919,0.12549,219.07,219.01,0.2]
[1731524650126,42.73517998,219.04,219.01,0.1]
[1731524650942,42.73517998,219.02,219.01,0.1]
[1731524651325,42.73517998,219.04,219.01,0.2]
[1731524651642,42.73517998,219.02,219.01,0.1]
[1731524651831,23.776884,219.01,218.97,0.1]
[1731524652032,42.73517998,218.98,218.97,0.2]
[1731524652231,42.73517998,219.02,218.99,0.2]
[1731524652530,42.73517998,219.02,219.01,0.1]
[1731524652729,4.5574,219.42,219.25,0.1]
[1731524652943,4.5574,219.42,219.2,0.092159]
[1731524652944,42.73517998,219.26,219.2,0.092159]
[1731524653126,42.73517998,219.32,219.26,0.092159]
[1731524653442,203.23517998,219.37,219.28,0.092159]
[1731524653630,42.73517998,219.35,219.28,0.092159]
[1731524653949,42.73517998,219.42,219.33,42.73517998]
[1731524654125,42.73517998,219.42,219.34,0.092159]
[1731524654439,42.73517998,219.42,219.11,22.65222187]
[1731524654440,42.73517998,219.46,219.37,42.73517998]
[1731524654644,6.93711822,219.49,219.27,31.7444]
[1731524654645,6.93711822,219.49,219.41,42.82733898]
[1731524654836,6.93711822,219.49,219.43,42.82733898]
[1731524655143,6.93711822,219.49,219.46,0.092159]
[1731524655349,6.93711822,219.49,219.44,0.092159]
[1731524655932,6.93711822,219.49,219.46,0.092159]
[1731524656132,4.5551,219.53,219.47,42.73517998]
[1731524656338,47.33298524,219.56,219.49,42.73517998]
[1731524656852,6.90628208,219.55,219.48,0.092159]
[1731524657042,0.12549,219.48,219.42,0.092159]
[1731524657244,42.73517998,219.49,219.42,42.73517998]
[1731524657552,42.73517998,219.47,219.42,0.092159]
[1731524657853,42.73517998,219.51,219.48,0.092159]
[1731524658231,6.90628208,219.55,219.44,0.092159]
[1731524658232,0.12549,219.48,219.44,0.092159]
[1731524658556,42.73517998,219.47,219.44,0.092159]
[1731524660438,47.29277998,219.41,219.36,0.092159]
[1731524660649,47.29277998,219.41,219.27,31.7444]
[1731524660650,42.73517998,219.37,219.35,0.092159]
[1731524661340,42.73517998,219.39,219.35,0.092159]
[1731524661654,42.73517998,219.45,219.42,0.092159]
[1731524661956,42.73517998,219.47,219.42,0.092159]
[1731524662348,160.5,219.53,219.34,42.73517998]
[1731524662349,42.73517998,219.51,219.48,0.092159]
[1731524662671,160.5,219.53,219.43,42.73517998]
[1731524662672,0.04310526,219.56,219.52,0.092159]
[1731524662869,42.73517998,219.54,219.47,0.092159]
[1731524663150,42.73517998,219.52,219.48,0.092159]
[1731524663551,42.73517998,219.52,219.5,0.092159]
[1731524663748,42.73517998,219.54,219.52,0.092159]
[1731524663934,0.04310526,219.56,219.54,0.092159]
[1731524664654,42.73517998,219.55,219.54,0.092159]
[1731524665241,23.776884,219.54,219.48,0.092159]
[1731524665442,23.776884,219.48,219.46,0.092159]
[1731524665651,42.73517998,219.51,219.5,0.092159]
[1731524665839,23.902374,219.5,219.42,0.092159]
[1731524666042,42.73517998,219.44,219.42,0.092159]
[1731524666765,42.73517998,219.44,219.43,0.092159]
[1731524667646,23.776884,219.43,219.41,0.092159]
[1731524667860,23.776884,219.41,219.39,0.092159]
[1731524668167,23.776884,219.39,219.35,0.092159]
[1731524668463,42.73517998,219.36,219.31,0.092159]
[1731524668633,42.73517998,219.32,219.29,0.092159]
[1731524668834,23.776884,219.39,219.29,0.092159]
[1731524668835,42.73517998,219.3,219.29,0.092159]
[1731524669035,42.73517998,219.3,219.2,0.092159]
[1731524669036,0.12549,219.29,219.2,0.092159]
[1731524669248,42.73517998,219.21,219.2,0.092159]
[1731524669534,42.73517998,219.21,219.17,0.092159]
[1731524669738,23.776884,219.17,219.12,0.092159]
[1731524670042,0.12549,219.16,219.12,0.092159]
[1731524670363,0.12549,219.16,219.04,12.6962]
[1731524670364,23.776884,219.12,219.09,0.092159]
[1731524670661,42.73517998,219.1,219.06,0.092159]
[1731524670836,42.73517998,219.07,219.06,0.092159]
[1731524671040,42.73517998,219.11,219.1,0.092159]
[1731524671239,42.73517998,219.13,219.12,0.092159]
[1731524671660,66.51206398,219.13,219.1,0.092159]
[1731524671953,66.51206398,219.13,219.12,0.092159]
[1731524672348,66.51206398,219.13,219.01,32.1258]
[1731524672349,66.51206398,219.13,219.1,0.092159]
[1731524672548,42.73517998,219.11,219.1,0.092159]
[1731524673252,66.51206398,219.13,219.12,0.092159]
[1731524673444,66.51206398,219.13,219.1,0.092159]
[1731524673643,42.73517998,219.11,219.1,0.092159]
[1731524673858,0.12549,219.16,219.14,0.092159]
[1731524674068,0.12549,219.16,219.15,42.73517998]
[1731524674437,0.12549,219.16,219.15,62.73517998]
[1731524674643,0.12549,219.16,219.14,0.092159]
[1731524675144,42.73517998,219.31,219.3,0.092159]
[1731524675361,42.73517998,219.33,219.32,0.092159]
[1731524675556,42.73517998,219.33,219.3,0.092159]
[1731524675750,4.5586,219.37,219.18,30.4141]
[1731524675751,42.73517998,219.31,219.26,0.092159]
[1731524675952,42.73517998,219.27,219.26,0.092159]
[1731524676762,42.73517998,219.27,219.24,0.092159]
[1731524677065,42.73517998,219.25,219.24,0.092159]
[1731524677370,42.73517998,219.27,219.26,0.092159]
[1731524678470,66.51206398,219.27,219.26,0.092159]
[1731524679258,23.776884,219.26,219.2,0.092159]
[1731524679565,42.73517998,219.21,219.19,0.092159]
[1731524679747,42.73517998,219.2,219.17,0.092159]
[1731524679946,42.73517998,219.23,219.17,0.092159]
[1731524679947,42.73517998,219.18,219.17,0.092159]
[1731524680157,42.73517998,219.24,219.23,0.092159]
[1731524680361,42.73517998,219.26,219.25,0.092159]
[1731524680553,42.73517998,219.3,219.27,0.092159]
[1731524680760,42.73517998,219.3,219.21,42.73517998]
[1731524680761,42.73517998,219.3,219.29,0.092159]
[1731524680949,42.73517998,219.3,219.27,0.092159]
[1731524681147,42.73517998,219.3,219.29,0.092159]
[1731524681350,42.73517998,219.34,219.33,0.092159]
[1731524682048,85.47035996,219.34,219.27,0.092159]
[1731524682348,42.73517998,219.28,219.23,0.092159]
[1731524682547,0.12549,219.33,219.12,12.5416]
[1731524682548,42.73517998,219.24,219.2,0.092159]
[1731524682752,42.73517998,219.21,219.18,0.092159]
[1731524682973,23.776884,219.17,219.16,0.092159]
[1731524683150,66.51206398,219.17,219.16,0.092159]
[1731524683350,66.51206398,219.17,219.14,0.092159]
[1731524683549,66.51206398,219.17,219.1,0.092159]
[1731524683550,23.776884,219.14,219.1,0.092159]
[1731524683748,23.776884,219.14,219.13,0.092159]
[1731524684274,23.776884,219.16,219.12,0.092159]
[1731524684477,23.776884,219.16,219.14,0.092159]
[1731524684969,4.5627,219.17,219.03,44.3821]
[1731524684970,66.51206398,219.15,219.12,0.092159]
[1731524685161,4.5627,219.17,219.03,31.729359]
[1731524685162,0.12549,219.11,219.03,31.729359]
[1731524685363,23.776884,219.03,218.98,0.092159]
[1731524685567,192.3241,219.1,218.96,0.092159]
[1731524685568,23.776884,218.98,218.96,0.092159]
[1731524685866,23.776884,218.98,218.94,0.092159]
[1731524686070,0.1,219.07,218.95,0.092159]
[1731524686071,23.776884,219.0,218.95,0.092159]
[1731524686246,23.776884,219.0,218.86,31.5974]
[1731524686247,23.776884,219.0,218.98,0.092159]
[1731524686449,66.51206398,218.99,218.98,0.092159]
[1731524687252,42.73517998,219.01,218.98,0.092159]
[1731524687465,66.51206398,219.01,219.0,0.092159]
[1731524687684,11.4103,219.1,219.06,0.092159]
[1731524687685,42.73517998,219.07,219.06,0.092159]
[1731524687977,66.51206398,219.07,219.06,0.092159]
[1731524688167,23.902374,219.06,219.0,0.092159]
[1731524688347,66.51206398,219.01,219.0,0.092159]
[1731524688862,66.51206398,219.01,218.69,25.84900593]
[1731524688863,23.902374,219.0,218.95,0.092159]
[1731524689070,66.51206398,218.96,218.95,0.092159]
[1731524689457,28.344084,218.95,218.93,0.092159]
[1731524689654,42.73517998,218.94,218.93,0.092159]
[1731524689854,23.776884,218.93,218.92,0.092159]
[1731524690055,66.51206398,218.93,218.92,0.092159]
[1731524690257,66.51206398,218.93,218.9,0.092159]
[1731524690467,23.776884,218.93,218.92,0.092159]
[1731524690754,23.776884,218.94,218.9,0.092159]
[1731524690957,66.51206398,218.91,218.9,0.092159]
[1731524691564,23.776884,218.9,218.88,0.092159]
[1731524691769,66.51206398,218.89,218.88,0.092159]
[1731524692161,66.51206398,218.89,218.86,0.092159]
[1731524692366,23.776884,218.86,218.8,0.5232116]
[1731524692573,42.73517998,218.81,218.8,0.5232116]
[1731524692771,66.51206398,218.81,218.8,0.4310526]
[1731524692979,129.37273396,218.81,218.8,0.4310526]
[1731524693283,23.776884,218.78,218.75,460.092159]
[1731524693570,66.51206398,218.76,218.75,460.0]
[1731524693760,66.63755398,218.76,218.75,460.0]
[1731524693970,86.63755398,218.76,218.75,460.0]
[1731524694680,113.89755398,218.76,218.75,343.48794079]
[1731524695079,156.73273396,218.76,218.75,343.48794079]
[1731524695280,113.89755398,218.76,218.75,319.71794079]
[1731524695896,113.89755398,218.76,218.75,319.28688819]
[1731524696286,156.73273396,218.76,218.75,315.99308819]
[1731524696589,156.73273396,218.76,218.75,302.92578819]
[1731524696893,156.73273396,218.76,218.75,272.4716301]
[1731524697195,163.68016157,218.76,218.75,127.01407089]
[1731524697366,163.68016157,218.76,218.75,88.34717089]
[1731524697787,163.68016157,218.76,218.75,82.25827089]
[1731524697988,228.48356984,218.76,218.75,27.9830114]
[1731524698193,228.48356984,218.76,218.58,0.4310526]
[1731524698194,0.1,218.65,218.58,0.4310526]
[1731524698380,112.73035996,218.59,218.58,5.26e-05]
[1731524698567,32.36190151,218.58,218.51,0.092159]
[1731524698767,42.73517998,218.54,218.53,0.092159]
[1731524698988,47.83708149,218.58,218.55,0.092159]
[1731524699291,5.10190151,218.58,218.57,0.092159]
[1731524699698,5.10190151,218.58,218.55,0.092159]
[1731524699873,9.67680151,218.58,218.57,0.092159]
[1731524700198,5.10190151,218.58,218.57,0.092159]
[1731524703895,4.5751,218.57,218.53,0.092159]
[1731524704082,42.73517998,218.54,218.49,0.092159]
[1731524704399,42.73517998,218.51,218.49,0.092159]
[1731524705493,3.4069391,218.5,218.49,0.092159]
[1731524705881,3.4069391,218.5,218.47,0.092159]
[1731524705882,7.9835391,218.5,218.47,0.092159]
[1731524706084,42.73517998,218.48,218.47,0.092159]
[1731524706396,46.14211908,218.48,218.47,0.092159]
[1731524706576,3.4069391,218.48,218.47,0.092159]
[1731524706778,46.14211908,218.48,218.45,0.092159]
[1731524706993,42.73517998,218.46,218.45,0.092159]
[1731524707200,3.4069391,218.47,218.45,0.092159]
[1731524707379,3.4069391,218.46,218.45,0.092159]
[1731524707590,42.73517998,218.46,218.41,0.092159]
[1731524707897,7.98520252,218.45,218.38,42.82733898]
[1731524708089,7.98520252,218.45,218.42,0.092159]
[1731524708397,4.5777,218.45,218.44,0.092159]
[1731524708798,3.40798787,218.45,218.44,0.092159]
[1731524709093,4.5767,218.5,218.44,42.82733898]
[1731524709298,42.73517998,218.54,218.49,0.092159]
[1731524709486,42.73517998,218.54,218.47,42.73517998]
[1731524709487,4.5763,218.52,218.51,0.092159]
[1731524709680,3.40897094,218.52,218.51,0.092159]
[1731524710496,4.5764,218.51,218.47,0.092159]
[1731524710801,42.73517998,218.48,218.43,0.092159]
[1731524711008,3.40897094,218.47,218.43,0.092159]
[1731524711179,3.40897094,218.46,218.43,0.092159]
[1731524711382,3.40897094,218.45,218.39,0.092159]
[1731524711579,3.40897094,218.44,218.42,0.092159]
[1731524711788,7.98707094,218.43,218.42,0.092159]
[1731524712792,7.98707094,218.43,218.37,42.73517998]
[1731524712793,7.98707094,218.43,218.41,0.092159]
[1731524712996,3.40897094,218.42,218.41,0.092159]
[1731524713303,3.40897094,218.42,218.37,0.092159]
[1731524713608,0.12549,218.37,218.36,0.4310526]
[1731524713908,0.12549,218.37,218.29,15.0]
[1731524713909,4.5802,218.33,218.29,15.0]
[1731524714106,47.31537998,218.33,218.29,15.0]
[1731524714403,42.73517998,218.31,218.29,15.0]
[1731524714786,23.902374,218.3,218.29,15.0]
[1731524715310,23.902374,218.3,218.29,12.5559]
[1731524715491,0.1,218.27,218.17,0.092159]
[1731524715809,4.70879,218.18,218.17,0.092159]
[1731524716007,4.5821,218.24,218.21,0.092159]
[1731524716185,4.5821,218.24,218.19,0.092159]
[1731524716384,0.12549,218.2,218.14,0.4310526]
[1731524716597,0.12549,218.22,218.14,5.26e-05]
[1731524716598,0.1,218.17,218.14,5.26e-05]
[1731524716825,0.1,218.17,218.0,0.092159]
[1731524717107,24.002374,218.15,218.0,0.092159]
[1731524717283,42.86066998,218.06,218.02,0.092159]
[1731524717795,71.22335398,218.06,217.93,0.5232116]
[1731524718103,71.22335398,218.06,217.98,0.092159]
[1731524718310,71.22335398,218.06,217.91,0.1]
[1731524718311,47.44646998,218.06,218.02,0.092159]
[1731524718505,0.1,218.05,217.95,0.3268034]
[1731524718716,42.86066998,217.96,217.95,0.3268034]
[1731524719000,42.73517998,217.96,217.95,0.3268034]
[1731524719183,66.51206398,217.96,217.95,0.3268034]
[1731524719386,66.63755398,217.96,217.95,0.3268034]
[1731524720002,71.22545398,217.96,217.95,0.3268034]
[1731524720786,71.22545398,217.96,217.95,3.4e-06]
[1731524722493,42.73517998,217.87,217.83,0.092159]
[1731524722999,42.73517998,217.87,217.79,42.73517998]
[1731524723000,42.73517998,217.87,217.85,0.092159]
[1731524723308,0.12549,217.88,217.83,0.092159]
[1731524723486,0.12549,217.86,217.83,0.092159]
[1731524723680,47.32477998,217.89,217.85,0.092159]
[1731524723883,47.32477998,217.89,217.81,42.73517998]
[1731524723884,42.73517998,218.01,217.93,0.092159]
[1731524724105,47.32227998,218.01,217.99,0.092159]
[1731524724690,0.12549,218.0,217.99,0.092159]
[1731524725007,3.61129154,218.12,217.99,0.092159]
[1731524725008,4.5863,218.04,218.01,0.092159]
[1731524725499,4.5858,218.07,218.03,0.092159]
[1731524725683,0.1,218.2,218.03,0.092159]
[1731524725684,42.73517998,218.12,218.08,0.092159]
[1731524725885,54.91537998,218.24,217.96,0.1]
[1731524725886,42.73517998,218.14,218.1,0.092159]
[1731524726080,42.73517998,218.12,218.06,0.092159]
[1731524726284,42.73517998,218.08,218.04,0.092159]
[1731524726483,0.12549,218.07,218.04,0.092159]
[1731524726888,42.73517998,218.1,218.04,0.092159]
[1731524727207,42.73517998,218.06,218.04,0.092159]
[1731524727403,0.12549,218.05,217.97,0.092159]
[1731524727601,0.12549,218.05,217.86,0.1]
[1731524727602,0.12549,217.97,217.93,0.092159]
[1731524727803,0.12549,217.97,217.89,0.092159]
[1731524727804,0.12549,217.95,217.89,0.092159]
[1731524727993,0.12549,217.93,217.89,0.092159]
[1731524728393,23.902374,217.93,217.87,0.092159]
[1731524728801,0.12549,217.91,217.87,0.092159]
[1731524728991,42.73517998,217.9,217.87,0.092159]
[1731524729191,23.902374,217.89,217.87,0.092159]
[1731524729587,0.12549,217.9,217.84,42.73517998]
[1731524729916,23.902374,217.84,217.8,0.092159]
[1731524730099,23.902374,217.82,217.8,0.092159]
[1731524730304,0.12549,217.82,217.8,0.092159]
[1731524730492,0.12549,217.8,217.76,0.092159]
[1731524730692,23.902374,217.77,217.72,0.092159]
[1731524730908,0.12549,217.77,217.76,0.092159]
[1731524731107,0.12549,217.81,217.72,0.092159]
[1731524731407,0.12549,217.81,217.76,0.092159]
[1731524731611,0.12549,217.81,217.74,0.092159]
[1731524731817,0.12549,217.81,217.69,33.0539]
[1731524731818,0.12549,217.81,217.76,0.092159]
[1731524732003,4.5907,217.83,217.79,0.092159]
[1731524732190,0.12549,217.79,217.77,0.092159]
[1731524732388,0.12549,217.79,217.69,33.0539]
[1731524732389,23.902374,217.77,217.71,0.092159]
[1731524732604,42.73517998,217.8,217.73,0.092159]
[1731524732908,23.776884,217.79,217.76,0.092159]
[1731524733208,0.12549,217.78,217.72,0.092159]
[1731524733408,0.12549,217.78,217.69,33.0539]
[1731524733409,0.12549,217.78,217.7,0.5698978]
[1731524733587,23.776884,217.79,217.74,0.092159]
[1731524733793,23.776884,217.79,217.7,0.4777388]
[1731524734092,23.776884,217.79,217.7,0.5698978]
[1731524734296,23.776884,217.77,217.74,0.092159]
[1731524734492,4.5917,217.78,217.76,0.092159]
[1731524735093,23.902374,217.77,217.71,0.092159]
[1731524735494,0.12549,217.71,217.7,0.4777388]
[1731524735712,66.63755398,217.71,217.7,0.4777388]
[1731524736092,71.23075398,217.71,217.7,0.4777388]
[1731524736294,71.23075398,217.71,217.6,0.092159]
[1731524736493,42.73517998,217.61,217.6,0.092159]
[1731524736712,42.73517998,217.61,217.52,30.3144]
[1731524736713,42.73517998,217.61,217.57,0.092159]
[1731524736919,85.47035996,217.58,217.52,0.092159]
[1731524737213,42.73517998,217.53,217.52,0.092159]
[1731524737512,42.73517998,217.53,217.5,0.092159]
[1731524737699,42.73517998,217.51,217.5,0.092159]
[1731524737900,42.73517998,217.51,217.47,0.092159]
[1731524738219,47.33327998,217.48,217.47,0.092159]
[1731524738711,35.393074,217.57,217.49,0.092159]
[1731524738712,42.73517998,217.5,217.49,0.092159]
[1731524739027,4.5936,217.69,217.56,0.092159]
[1731524739210,4.5936,217.69,217.46,0.5777388]
[1731524739211,42.73517998,217.57,217.54,0.092159]
[1731524739510,0.12549,217.57,217.46,0.5698978]
[1731524739894,85.47035996,217.47,217.46,0.4777388]
[1731524740311,90.19414996,217.47,217.46,0.4777388]
[1731524740503,42.73517998,217.39,217.38,0.092159]
[1731524741295,42.73517998,217.41,217.4,0.092159]
[1731524741717,42.73517998,217.41,217.29,2.7611]
[1731524741718,0.1,217.38,217.25,0.092159]
[1731524741926,43.16355816,217.26,217.24,0.092159]
[1731524742094,43.16355816,217.27,217.26,0.092159]
[1731524742293,4.6025,217.27,217.26,0.092159]
[1731524742520,4.6012,217.33,217.27,0.092159]
[1731524742693,23.776884,217.32,217.22,0.4777388]
[1731524742897,43.16355816,217.27,217.24,0.092159]
[1731524743120,43.16355816,217.32,217.31,0.092159]
[1731524743812,4.6012,217.33,217.31,0.092159]
[1731524744009,43.16355816,217.32,217.31,0.092159]
[1731524744218,4.6012,217.33,217.31,0.092159]
[1731524744508,43.16355816,217.39,217.35,0.092159]
[1731524744708,23.0865,217.52,217.3,43.16355816]
[1731524744709,4.5998,217.4,217.38,0.092159]
[1731524745017,43.16355816,217.41,217.4,0.092159]
[1731524745200,4.5977,217.5,217.47,0.092159]
[1731524745405,4.5977,217.5,217.45,0.092159]
[1731524745610,4.5977,217.5,217.34,12.4058]
[1731524745611,0.1,217.49,217.41,0.092159]
[1731524745914,0.1,217.48,217.37,0.092159]
[1731524746219,43.16355816,217.38,217.37,0.092159]
[1731524746588,20.12549,217.37,217.3,0.092159]
[1731524746794,43.16355816,217.31,217.28,0.092159]
[1731524747015,43.16355816,217.29,217.28,0.092159]
[1731524747328,43.16355816,217.29,217.18,31.5993]
[1731524747329,43.16355816,217.29,217.24,0.092159]
[1731524747498,43.16355816,217.26,217.25,0.092159]
[1731524748130,43.16355816,217.3,217.29,0.092159]
[1731524748412,0.1,217.44,217.34,0.092159]
[1731524748598,70.0,217.53,217.3,0.092159]
[1731524748599,43.16355816,217.35,217.3,0.092159]
[1731524748794,0.12549,217.3,217.27,0.092159]
[1731524749005,0.12549,217.3,217.24,0.092159]
[1731524749202,0.12549,217.24,217.22,0.4777388]
[1731524749418,0.1,217.41,217.24,0.092159]
[1731524749723,0.12549,217.27,217.26,0.092159]
[1731524749924,43.16355816,217.29,217.28,0.092159]
[1731524750252,43.16355816,217.35,217.32,0.092159]
[1731524750421,43.16355816,217.37,217.34,0.092159]
[1731524750722,43.16355816,217.35,217.34,0.092159]
[1731524750920,27.5937,217.44,217.34,0.092159]
[1731524750921,43.16355816,217.42,217.41,0.092159]
[1731524751096,4.5985,217.47,217.46,0.092159]
[1731524751295,61.56242116,217.48,217.46,0.092159]
[1731524751296,18.398863,217.48,217.46,0.092159]
[1731524751500,18.398863,217.48,217.46,43.25571716]
[1731524751716,18.398863,217.48,217.46,0.092159]
[1731524752195,4.5985,217.46,217.4,0.092159]
[1731524752395,43.16355816,217.43,217.39,0.092159]